bitfinex-derivatives/quotes_ETHF0:USTF0_20250928
["timestamp","ask_amount","ask_price","bid_price","bid_amount"]
[1759088144760,3.757,4040.2,4040.1,1.43538]
[1759088145555,3.2078,4040.2,4040.1,1.43538]
[1759088148065,3.757,4040.2,4040.1,1.43538]
[1759088148959,3.9677,4040.2,4040.1,0.97148]
[1759088149165,4.46489375,4040.2,4040.1,0.65408]
[1759088149367,4.46489375,4040.2,4040.1,0.44538]
[1759088153166,3.9677,4040.2,4040.1,0.44538]
[1759088153562,3.9677,4040.2,4040.1,1.18998]
[1759088153758,3.2078,4040.2,4040.1,2.53691402]
[1759088154159,3.7636,4040.2,4040.1,2.53691402]
[1759088154359,4.26079092,4040.2,4040.1,2.53691402]
[1759088154863,3.7636,4040.2,4040.1,2.53691402]
[1759088155764,3.9812,4040.2,4040.1,2.53691402]
[1759088156959,3.9812,4040.2,4040.1,0.65408]
[1759088157166,3.9812,4040.2,4040.1,0.90138]
[1759088157868,4.47844506,4040.2,4040.1,0.69338]
[1759088160663,0.2149,4039.7,4039.6,1.73477825]
[1759088160868,0.7734,4039.7,4039.6,2.29657825]
[1759088161960,0.7734,4039.7,4039.6,2.51867825]
[1759088163370,0.7734,4039.7,4039.6,0.44542]
[1759088163670,0.7734,4039.6,4039.5,0.44543]
[1759088163971,0.7734,4039.4,4039.3,2.29661825]
[1759088164472,0.7734,4039.4,4039.3,2.51871825]
[1759088167676,0.7734,4039.4,4039.3,1.08135825]
[1759088167975,0.7734,4039.3,4039.2,0.69447]
[1759088168173,0.7734,4039.3,4039.2,1.43837]
[1759088173474,0.7734,4039.3,4039.2,1.21627]
[1759088173774,0.7734,4039.3,4039.2,0.249]
[1759088174368,0.7734,4039.3,4039.2,0.7863]
[1759088174666,0.7734,4039.3,4039.2,1.44798]
[1759088178679,3.2078,4039.6,4039.5,0.44544]
[1759088178977,4.154545,4039.6,4039.5,1.19894]
[1759088179276,4.475745,4039.6,4039.5,1.44694]
[1759088182480,4.475745,4039.6,4039.5,1.57684]
[1759088183179,4.475745,4039.6,4039.5,1.44694]
[1759088184681,0.4264,4039.2,4039.1,1.30645825]
[1759088184882,0.7418,4039.2,4039.1,0.811]
[1759088185181,0.7418,4039.2,4039.1,1.0177]
[1759088185683,0.7418,4039.2,4039.1,1.46318]
[1759088189787,3.2078,4039.6,4039.5,0.67054]
[1759088189988,4.13204717,4039.6,4039.5,1.21514]
[1759088190191,4.44744717,4039.6,4039.5,1.21514]
[1759088190891,4.44744717,4039.6,4039.5,0.67054]
[1759088191092,4.44744717,4039.6,4039.5,0.44544]
[1759088204414,4.69544717,4039.6,4039.5,0.44544]
[1759088204712,4.69544717,4039.6,4039.3,0.69345]
[1759088204909,1.37384717,4039.5,4039.4,0.44545]
[1759088209712,1.37384717,4039.5,4039.4,1.21515]
[1759088209914,1.03254717,4039.5,4039.4,1.21515]
[1759088210613,1.23964717,4039.5,4039.4,2.29650825]
[1759088210815,0.49784717,4039.5,4039.4,2.29650825]
[1759088212308,0.49784717,4039.5,4039.4,1.95860825]
[1759088212514,1.03338055,4039.8,4039.7,0.7697]
[1759088212716,1.24048052,4039.8,4039.7,0.7697]
[1759088216822,1.24048052,4039.8,4039.7,1.21511]
[1759088218322,1.24048052,4039.8,4039.7,2.29646825]
[1759088218622,1.68588052,4039.8,4039.7,2.29646825]
[1759088219223,1.68588052,4039.8,4039.7,0.7697]
[1759088220621,0.8773,4039.5,4039.4,0.44544]
[1759088220824,1.37598052,4039.5,4039.4,0.69344]
[1759088221418,1.37598052,4039.5,4039.4,1.24634]
[1759088223422,1.37598052,4039.5,4039.4,0.99834]
[1759088223728,1.37598052,4039.5,4039.4,1.24634]
[1759088224927,1.37598052,4039.5,4039.4,1.45234]
[1759088225127,4.58378052,4039.5,4039.4,1.45234]
[1759088225627,4.58378052,4039.5,4039.4,1.0069]
[1759088225829,5.02922052,4039.5,4039.4,1.0069]
[1759088226028,5.02922052,4039.5,4039.4,0.4651]
[1759088227030,1.19166,4039.3,4039.2,0.2171]
[1759088227228,1.69034052,4039.3,4039.2,0.2171]
[1759088227524,1.1013,4039.0,4038.9,0.2171]
[1759088227721,1.1013,4039.0,4038.7,0.2171]
[1759088227722,0.7462,4038.8,4038.7,0.2171]
[1759088228026,1.24488052,4038.8,4038.7,0.4651]
[1759088228528,1.24488052,4038.8,4038.7,0.8009]
[1759088230227,0.7462,4038.8,4038.7,0.8009]
[1759088231333,0.7462,4038.8,4038.7,1.0069]
[1759088236832,1.24412523,4038.8,4038.7,1.0069]
[1759088237233,0.7462,4038.8,4038.7,1.0069]
[1759088239334,0.7462,4038.8,4038.7,1.45243]
[1759088239645,0.7462,4038.8,4038.7,2.80038701]
[1759088241136,0.7462,4038.8,4038.7,2.35485701]
[1759088242435,0.7462,4038.8,4038.7,1.0069]
[1759088243237,0.7462,4038.8,4038.7,1.45243]
[1759088248141,1.24481775,4038.8,4038.7,1.45243]
[1759088249832,1.24481775,4038.8,4038.7,1.20443]
[1759088250344,1.24481775,4038.8,4038.7,1.45243]
[1759088251439,0.49861775,4038.8,4038.7,1.45243]
[1759088251743,3.4259,4039.0,4038.9,1.19391]
[1759088252041,4.24386217,4039.0,4038.9,1.19391]
[1759088254648,3.7451,4039.0,4038.9,1.19391]
[1759088254850,4.24409035,4039.0,4038.9,1.19391]
[1759088255949,3.92489035,4039.0,4038.9,1.19391]
[1759088256152,3.70679035,4039.0,4038.9,6.19391]
[1759088256344,3.2078,4039.5,4039.4,1.19385]
[1759088256654,0.4992789,4039.5,4039.4,2.78980701]
[1759088257950,0.5373,4039.8,4039.7,0.66422]
[1759088258157,1.03631573,4039.8,4039.7,1.19382]
[1759088259042,1.24131573,4039.8,4039.7,1.19382]
[1759088263168,1.24131573,4039.8,4039.7,1.44182]
[1759088265255,0.49901573,4039.8,4039.7,1.44182]
[1759088265754,1.03631573,4039.8,4039.7,1.44182]
[1759088267354,1.24131573,4039.8,4039.7,1.44182]
[1759088268159,0.7423,4039.8,4039.7,1.44182]
[1759088268359,0.5373,4039.8,4039.7,1.44182]
[1759088269458,0.7423,4039.8,4039.7,1.44182]
[1759088269659,1.23996278,4039.8,4039.7,1.44182]
[1759088270351,1.23998391,4039.8,4039.7,1.44182]
[1759088278862,1.68539391,4039.8,4039.7,1.44182]
[1759088280560,1.68539391,4039.8,4039.7,0.7484]
[1759088280762,0.7524,4039.4,4039.3,0.2055]
[1759088280959,1.26643119,4039.4,4039.3,0.248]
[1759088281267,1.69593119,4039.4,4039.3,0.248]
[1759088281455,1.69593119,4039.4,4039.3,0.4535]
[1759088282164,4.90373119,4039.4,4039.3,0.248]
[1759088282866,0.1331,4039.0,4038.9,0.4455]
[1759088283169,1.06068119,4039.0,4038.9,0.6935]
[1759088283468,1.38358119,4039.0,4038.9,0.6935]
[1759088284967,1.38358119,4039.0,4038.9,0.248]
[1759088285168,1.38358119,4039.0,4038.9,0.4535]
[1759088286363,1.38358119,4039.0,4038.9,0.7786]
[1759088288473,1.38358119,4039.0,4038.9,0.248]
[1759088290366,1.82908119,4039.0,4038.9,0.248]
[1759088291069,1.38358119,4039.0,4038.9,0.4535]
[1759088293474,1.38358119,4039.0,4038.7,1.08188301]
[1759088293672,1.21498301,4039.0,4038.8,0.248]
[1759088293873,0.756,4038.9,4038.8,0.248]
[1759088294674,1.69943674,4038.9,4038.8,0.248]
[1759088295880,1.25392674,4038.9,4038.8,0.248]
[1759088296073,0.70792674,4038.9,4038.8,1.46382]
[1759088296371,1.03232674,4038.9,4038.8,1.46382]
[1759088296577,1.25392674,4038.9,4038.8,1.46382]
[1759088300079,1.25392674,4038.9,4038.8,1.13072]
[1759088300680,1.25392674,4038.9,4038.8,1.46382]
[1759088307082,1.25392674,4038.9,4038.8,1.21582]
[1759088307282,1.25392674,4038.9,4038.8,1.46382]
[1759088311080,4.46172674,4038.9,4038.8,0.4751]
[1759088311274,4.46172674,4038.9,4038.8,0.248]
[1759088311474,0.9069,4038.5,4038.4,1.33597084]
[1759088311677,0.7823,4038.4,4038.3,0.69356]
[1759088311885,1.28022674,4038.4,4038.3,0.69356]
[1759088312189,1.28022674,4038.4,4038.3,0.44556]
[1759088312885,4.59499674,4038.4,4038.2,0.69358]
[1759088313084,1.28022674,4038.3,4038.2,0.248]
[1759088313675,1.72580674,4038.3,4038.1,0.44559]
[1759088313984,1.28022674,4038.2,4038.1,0.44559]
[1759088314184,1.28022674,4038.2,4038.1,0.69359]
[1759088315780,1.28022674,4038.2,4038.1,1.23059]
[1759088316784,1.28022674,4038.2,4038.1,0.98259]
[1759088316985,1.28022674,4038.2,4038.1,1.23059]
[1759088317180,1.28022674,4038.2,4038.1,1.43779]
[1759088320890,0.7823,4038.2,4038.1,2.51967301]
[1759088328805,0.5608,4038.2,4038.1,2.51967301]
[1759088331805,3.2078,4038.4,4038.3,0.85857]
[1759088332010,3.70724059,4038.4,4038.3,1.43777]
[1759088332210,3.2078,4038.4,4038.3,1.43777]
[1759088333909,0.3722,4039.0,4038.9,0.66581]
[1759088333910,4.1024,4039.0,4038.9,0.66581]
[1759088334110,4.82439897,4039.0,4038.9,0.66581]
[1759088337208,4.82439897,4039.0,4038.9,1.18941]
[1759088337805,4.57639897,4039.0,4038.9,1.18941]
[1759088338612,4.45219897,4039.0,4038.9,1.18941]
[1759088338915,4.58099897,4039.0,4038.9,0.44551]
[1759088342518,4.58099897,4039.0,4038.9,0.66581]
[1759088342719,4.58099897,4039.0,4038.9,0.97601]
[1759088342920,4.58099897,4039.0,4038.9,1.18941]
[1759088343220,3.70729897,4039.0,4038.9,1.18941]
[1759088343822,4.24469897,4039.0,4038.9,1.43741]
[1759088344320,3.92979897,4039.0,4038.9,1.43741]
[1759088344514,3.70729897,4039.0,4038.9,1.43741]
[1759088344717,3.2078,4039.0,4038.9,1.43741]
[1759088346019,0.5374,4039.2,4039.1,0.87919]
[1759088346218,0.5374,4039.2,4039.1,1.18939]
[1759088348323,3.4303,4039.5,4039.4,1.18935]
[1759088348524,0.43,4039.5,4039.4,1.43735]
[1759088348824,0.8737,4039.5,4039.4,1.43735]
[1759088353327,0.7449,4039.5,4039.4,1.43735]
[1759088358029,0.7449,4039.5,4039.4,1.63617785]
[1759088358923,0.7449,4039.5,4039.4,1.43735]
[1759088366534,0.7449,4039.5,4039.4,1.18935]
[1759088366834,0.7449,4039.5,4039.4,1.43735]
[1759088370736,0.5374,4039.5,4039.4,1.43735]
[1759088370934,3.7512,4040.0,4039.9,0.9873]
[1759088371136,4.2500993,4040.0,4039.9,0.9873]
[1759088371332,4.56233095,4040.0,4039.9,0.9873]
[1759088371534,4.56233095,4040.0,4039.9,1.2123]
[1759088374240,4.43393095,4040.0,4039.9,2.56049365]
[1759088374539,4.22683095,4040.0,4039.9,2.56049365]
[1759088374932,1.01903095,4040.0,4039.9,2.56049365]
[1759088375534,1.01941182,4040.0,4039.9,2.56049365]
[1759088376644,1.22651182,4040.0,4039.9,1.2123]
[1759088381949,1.22651182,4040.0,4039.9,1.4603]
[1759088382138,1.36291182,4040.0,4039.9,1.4603]
[1759088392447,1.22651182,4040.0,4039.9,1.4603]
[1759088393243,0.49941182,4040.0,4039.9,2.80849365]
[1759088393446,3.33673985,4040.5,4040.4,0.44534]
[1759088393651,4.35814631,4040.5,4040.4,1.46164]
[1759088394042,4.57044631,4040.5,4040.4,1.46164]
[1759088401752,4.44164631,4040.5,4040.4,1.46164]
[1759088403250,4.56464631,4040.5,4040.4,0.90374]
[1759088404854,4.56450598,4040.5,4040.4,0.90374]
[1759088409457,4.56450598,4040.5,4039.9,0.4454]
[1759088409458,0.8716,4040.0,4039.9,0.4454]
[1759088409653,0.8716,4040.0,4039.9,0.6934]
[1759088410449,1.37049844,4040.0,4039.9,0.6934]
[1759088411456,1.37049844,4040.0,4039.9,0.4454]
[1759088413052,1.37049844,4040.0,4039.9,0.6934]
[1759088417958,5.79049124,4040.0,4039.3,3.53084364]
[1759088418165,0.8882,4039.5,4039.4,1.47015]
[1759088418660,0.7648,4039.5,4039.4,1.47015]
[1759088420362,0.8882,4039.5,4039.4,1.47015]
[1759088421366,0.8882,4039.5,4039.4,0.69345]
[1759088421760,0.8882,4039.5,4039.4,1.24415]
[1759088421961,0.7648,4039.5,4039.4,1.47015]
[1759088428074,0.8939,4039.5,4039.4,1.47015]
[1759088430976,0.8939,4039.5,4039.4,1.22215]
[1759088431684,0.8939,4039.5,4039.4,0.69345]
[1759088432166,0.8939,4039.5,4039.4,0.90005]
[1759088432366,0.8939,4039.5,4039.4,1.42945]
[1759088433374,0.7648,4039.5,4039.4,1.42945]
[1759088437178,1.26351975,4039.5,4039.4,1.42945]
[1759088440283,1.39261975,4039.5,4039.4,1.42945]
[1759088440887,1.39261975,4039.5,4039.4,1.11645]
[1759088441081,4.60041975,4039.5,4039.4,1.11645]
[1759088441481,4.60041975,4039.5,4039.4,0.90005]
[1759088442283,0.8822,4039.0,4038.6,4.54377084]
[1759088442478,0.7531,4038.8,4038.7,0.44553]
[1759088442678,0.7531,4038.8,4038.7,0.69353]
[1759088442880,0.7531,4038.8,4038.7,0.90013]
[1759088443082,1.25213621,4038.8,4038.7,1.21313]
[1759088443286,1.25213621,4038.8,4038.7,0.90013]
[1759088444286,0.7531,4038.8,4038.7,0.90013]
[1759088444477,1.25183762,4038.8,4038.7,0.90013]
[1759088445277,0.7531,4038.8,4038.7,1.21313]
[1759088445478,1.25173365,4038.8,4038.7,0.4546]
[1759088446188,1.25173365,4038.8,4038.3,0.44557]
[1759088446189,0.7531,4038.4,4038.3,0.44557]
[1759088446392,0.7531,4038.3,4038.0,0.313]
[1759088446581,0.3102,4038.2,4038.1,0.69359]
[1759088446780,0.7531,4038.2,4038.1,0.90019]
[1759088446988,0.7531,4038.2,4038.1,1.21319]
[1759088447283,0.7531,4038.2,4038.1,0.96519]
[1759088447590,0.7531,4038.2,4038.1,1.42959]
[1759088448181,0.7531,4038.2,4038.1,2.5107928]
[1759088448680,0.5375,4038.2,4038.1,2.5107928]
[1759088448875,0.5375,4038.4,4038.3,0.86857]
[1759088449085,0.5375,4038.4,4038.3,1.18157]
[1759088450487,0.7531,4038.4,4038.3,1.18157]
[1759088452091,0.5375,4038.4,4038.3,1.18157]
[1759088452387,0.3102,4038.7,4038.4,1.18156]
[1759088452588,0.5375,4038.6,4038.5,1.0812028]
[1759088452779,0.5375,4038.6,4038.5,1.5042028]
[1759088453176,0.5375,4038.6,4038.5,1.8172028]
[1759088454294,0.7531,4038.6,4038.5,1.8172028]
[1759088454785,0.7531,4038.6,4038.5,0.736]
[1759088454987,0.7531,4038.6,4038.5,0.5196]
[1759088455279,0.7531,4038.6,4038.5,0.7396]
[1759088455885,0.7531,4038.6,4038.5,0.8653]
[1759088456984,0.5375,4038.6,4038.5,0.8653]
[1759088458393,0.5375,4038.6,4038.5,1.31085]
[1759088460796,3.7566,4039.0,4038.9,1.18331]
[1759088461095,4.25465362,4039.0,4038.9,1.18331]
[1759088461394,4.57865362,4039.0,4038.9,1.18331]
[1759088463190,5.02415362,4039.0,4038.9,1.18331]
[1759088465203,4.57865362,4039.0,4038.9,1.18331]
[1759088465893,5.02415362,4039.0,4038.9,1.18331]
[1759088470596,4.57865362,4039.0,4038.9,1.18331]
[1759088472905,4.57865362,4039.0,4038.9,0.87271]
[1759088473096,4.57865362,4039.0,4038.9,0.65271]
[1759088475305,4.57865362,4039.0,4038.9,0.44551]
[1759088476300,0.7504,4038.6,4038.5,0.7623]
[1759088476605,1.24845362,4038.6,4038.5,0.7623]
[1759088476806,1.24845362,4038.6,4038.5,1.20785]
[1759088477209,1.24845362,4038.6,4038.5,0.69355]
[1759088479806,1.24845362,4038.6,4038.5,1.20785]
[1759088480613,1.24845362,4038.6,4038.5,1.43175]
[1759088501614,1.24845362,4038.6,4038.5,0.44555]
[1759088501918,1.24845362,4038.6,4038.5,0.69355]
[1759088502118,1.24845362,4038.6,4038.5,0.91395]
[1759088502617,1.24845362,4038.6,4038.5,1.23755]
[1759088506812,1.24845362,4038.6,4038.5,0.98955]
[1759088507112,1.24845362,4038.6,4038.5,1.23755]
[1759088507419,1.24845362,4038.6,4038.5,0.69355]
[1759088507615,1.24845362,4038.6,4038.5,0.44555]
[1759088509225,1.24845362,4038.6,4038.5,0.66595]
[1759088510822,1.24845362,4038.6,4038.5,1.19975]
[1759088525042,1.69398362,4038.6,4038.5,1.19975]
[1759088525740,1.24845362,4038.6,4038.5,1.19975]
[1759088525940,4.45625362,4038.6,4038.5,1.19975]
[1759088528541,4.90178362,4038.6,4038.5,1.19975]
[1759088529644,4.90178362,4038.6,4038.5,0.7542]
[1759088530344,4.90178362,4038.6,4038.5,1.19974]
[1759088538252,4.45625362,4038.6,4038.5,1.19974]
[1759088538943,3.70585362,4038.6,4038.5,1.32564]
[1759088539149,0.49805362,4038.6,4038.5,6.32564]
[1759088539345,0.7627,4039.0,4038.9,1.21089]
[1759088539554,1.26274036,4039.0,4038.9,1.21089]
[1759088540048,1.20822,4038.7,4038.5,0.248]
[1759088540445,0.7627,4038.6,4038.5,0.69354]
[1759088540644,0.7627,4038.6,4038.5,0.89964]
[1759088540950,0.7627,4038.6,4038.5,0.65164]
[1759088541154,0.7627,4038.6,4038.5,0.98984]
[1759088542954,0.7627,4038.6,4038.5,1.21094]
[1759088545252,1.26252447,4038.6,4038.5,1.21094]
[1759088546646,0.49982447,4038.6,4038.5,1.33484]
[1759088550054,3.2078,4039.6,4039.5,0.5505]
[1759088550253,3.2078,4039.6,4039.5,1.95191801]
[1759088550254,4.25429349,4039.6,4039.5,1.95191801]
[1759088550558,4.46539349,4039.6,4039.5,1.82801801]
[1759088554454,0.4193,4039.1,4039.0,0.44548]
[1759088554761,0.7578,4039.1,4039.0,0.69348]
[1759088554958,0.7578,4039.1,4039.0,0.89878]
[1759088555347,0.7578,4039.1,4039.0,1.21798]
[1759088556061,0.7578,4039.1,4039.0,0.96998]
[1759088556258,1.21731801,4039.5,4038.8,0.4455]
[1759088556259,0.4193,4038.9,4038.8,0.4455]
[1759088556460,0.7578,4038.9,4038.8,0.8988]
[1759088556650,0.7578,4038.9,4038.8,1.218]
[1759088559262,0.7578,4038.9,4038.8,1.4393]
[1759088559963,0.7578,4038.9,4038.8,1.1913]
[1759088560163,0.7578,4038.9,4038.8,1.4393]
[1759088566458,0.7578,4038.9,4038.8,0.6508]
[1759088566770,0.7578,4038.6,4038.5,0.65084]
[1759088566970,1.25698271,4038.6,4038.5,0.89884]
[1759088568372,1.25698271,4038.6,4038.5,1.21804]
[1759088576378,1.70251271,4038.6,4038.5,0.7725]
[1759088576979,1.70251271,4038.6,4038.5,1.21805]
[1759088578278,0.4263,4038.4,4038.3,0.2057]
[1759088578481,0.7671,4038.4,4038.3,0.4537]
[1759088579174,0.7671,4038.4,4038.3,0.89926]
[1759088579375,0.7671,4038.4,4038.3,0.2057]
[1759088579673,0.65067,4038.2,4038.1,0.4537]
[1759088579877,1.0066,4038.0,4037.9,0.5203]
[1759088580075,1.3474,4038.0,4037.9,0.7683]
[1759088581775,1.3474,4038.0,4037.9,0.4537]
[1759088581976,1.84560359,4038.0,4037.9,0.4537]
[1759088583674,1.3474,4038.0,4037.9,0.4537]
[1759088583884,1.84522876,4038.0,4037.9,0.4537]
[1759088584282,1.3474,4038.0,4037.9,0.4537]
[1759088584581,1.3474,4038.0,4037.9,0.7683]
[1759088586986,4.5552,4038.0,4037.9,0.7683]
[1759088587784,4.5552,4038.0,4037.9,0.5203]
[1759088587985,4.5552,4038.0,4037.9,0.2057]
[1759088588184,5.05256129,4038.0,4037.9,0.2057]
[1759088588687,5.05252524,4038.0,4037.9,0.2057]
[1759088588882,4.5552,4038.0,4037.9,0.2057]
[1759088589081,5.05250555,4038.0,4037.9,0.2057]
[1759088590886,1.21273,4037.7,4037.6,0.52310698]
[1759088591190,1.21273,4037.7,4037.6,0.25080698]
[1759088591687,1.21273,4037.7,4037.6,0.78110698]
[1759088591988,1.21273,4037.7,4037.6,0.99900698]
[1759088594486,0.7671,4037.7,4037.6,1.44464698]
[1759088595392,1.21273,4037.7,4037.6,1.44464698]
[1759088596090,0.7671,4037.7,4037.6,1.44464698]
[1759088597194,1.21273,4037.7,4037.6,1.44464698]
[1759088597991,1.21273,4037.7,4037.6,0.99900698]
[1759088598490,1.21273,4037.7,4037.6,1.44465698]
[1759088599490,1.71067381,4037.7,4037.6,1.44465698]
[1759088599690,1.26504381,4037.7,4037.6,1.44465698]
[1759088601992,1.71067381,4037.7,4037.6,1.44465698]
[1759088603194,1.26504381,4037.7,4037.6,1.44465698]
[1759088610902,0.49794381,4037.7,4037.6,2.79364945]
[1759088616700,1.04014381,4037.7,4037.6,2.79364945]
[1759088618004,1.25114381,4037.7,4037.6,1.44465698]
[1759088618607,1.25114381,4037.7,4037.6,1.19665698]
[1759088618807,1.25114381,4037.7,4037.6,1.44465698]
[1759088622610,1.25114381,4037.7,4037.6,0.87215698]
[1759088622811,1.25114381,4037.7,4037.6,1.12015698]
[1759088623003,1.25114381,4037.7,4037.6,1.42965698]
[1759088624610,1.25114381,4037.7,4037.6,0.87215698]
[1759088624812,1.25114381,4037.7,4037.6,0.90225698]
[1759088625216,1.25242773,4037.7,4037.6,0.90225698]
[1759088625607,1.25242773,4037.7,4037.6,1.21175698]
[1759088626008,1.25242773,4037.7,4037.6,1.43175698]
[1759088626213,0.71142773,4037.7,4037.6,1.43175698]
[1759088626817,1.04142773,4037.7,4037.6,1.43175698]
[1759088630116,1.25242773,4037.7,4037.6,1.43175698]
[1759088635410,0.71142773,4037.7,4037.6,1.43175698]
[1759088635720,1.02052773,4037.7,4037.6,1.43175698]
[1759088646526,1.02093213,4037.7,4037.6,1.43175698]
[1759088648221,0.49963213,4037.7,4037.6,1.43175698]
[1759088650830,0.80873213,4037.7,4037.6,1.43175698]
[1759088651518,1.01653213,4037.7,4037.6,1.43175698]
[1759088652229,1.01653213,4037.7,4037.6,2.51431435]
[1759088666837,0.49963213,4037.7,4037.6,2.51431435]
[1759088674750,0.5557,4038.3,4038.2,0.4222]
[1759088674948,1.05518659,4038.3,4038.2,1.0004]
[1759088675744,1.26088659,4038.3,4038.2,1.0004]
[1759088679852,1.26088659,4038.3,4038.2,1.44597]
[1759088684653,0.49948659,4038.3,4038.2,1.44597]
[1759088684959,3.2078,4038.4,4038.3,1.19796]
[1759088685246,3.4303,4038.4,4038.3,1.19796]
[1759088685453,3.7635,4038.4,4038.3,1.19796]
[1759088685951,3.9692,4038.4,4038.3,1.19796]
[1759088695757,3.2078,4038.4,4038.3,1.19796]
[1759088696058,3.959,4038.4,4038.3,1.19796]
[1759088697058,0.5268,4038.4,4038.3,1.19796]
[1759088700162,0.7512,4038.4,4038.3,1.19796]
[1759088714268,0.7512,4038.4,4038.3,3.88362028]
[1759088716576,0.5268,4038.4,4038.3,3.88362028]
[1759088716778,4.1214,4039.0,4038.9,0.6638]
[1759088716977,4.61916657,4039.0,4038.9,0.9118]
[1759088717676,4.61916657,4039.0,4038.9,1.4469]
[1759088718382,4.61916657,4039.0,4038.9,2.79535018]
[1759088719677,4.61916657,4039.0,4038.9,1.4469]
[1759088722675,4.61916657,4039.0,4038.9,0.248]
[1759088723075,5.06465657,4039.0,4038.9,0.248]
[1759088723678,4.61916657,4039.0,4038.9,0.6935]
[1759088733384,4.61916657,4039.0,4038.9,1.4633]
[1759088736482,1.41136657,4039.0,4038.9,1.4633]
[1759088736890,1.27626657,4039.0,4038.9,2.81175018]
[1759088737489,1.27626657,4039.0,4038.9,4.14896028]
[1759088737490,0.2255,4039.0,4038.9,4.14896028]
[1759088737983,0.5302,4039.2,4039.1,1.21528]
[1759088739584,0.7413,4039.2,4039.1,1.21528]
[1759088760308,0.5302,4039.2,4039.1,1.21528]
[1759088760508,0.2088,4039.2,4039.1,1.21528]
[1759088760807,0.2088,4039.2,4039.1,2.5524901]
[1759088761602,0.5334,4039.2,4039.1,2.5524901]
[1759088761800,0.5334,4039.2,4039.1,2.8004901]
[1759088763913,0.7572,4039.2,4039.1,2.8004901]
[1759088766316,0.2212,4039.5,4039.4,0.7728]
[1759088766514,0.445,4039.5,4039.4,1.0208]
[1759088766710,0.94211325,4039.5,4039.4,1.0208]
[1759088766918,1.26671325,4039.5,4039.4,1.0208]
[1759088767222,1.26671325,4039.5,4039.4,1.46624]
[1759088769326,1.40151325,4039.5,4039.4,1.0208]
[1759088769621,0.5798,4039.0,4038.9,1.33588108]
[1759088769818,1.40151325,4039.0,4038.9,0.248]
[1759088770120,0.63191325,4039.0,4038.6,4.54368108]
[1759088770320,0.9044,4038.5,4038.4,2.33512108]
[1759088770527,0.9044,4038.5,4038.4,2.58312108]
[1759088770825,0.9044,4038.5,4038.4,1.46634]
[1759088771220,0.7696,4038.5,4038.4,1.46634]
[1759088774221,0.7696,4038.5,4038.4,2.54840407]
[1759088777417,0.8964,4038.5,4038.4,2.54840407]
[1759088778429,0.7696,4038.5,4038.4,2.54840407]
[1759088779723,0.318,4038.7,4038.5,0.44554]
[1759088779930,0.5251,4038.7,4038.6,2.07326407]
[1759088781432,0.5251,4038.7,4038.6,2.51879407]
[1759088782129,0.2071,4039.0,4038.9,0.7432]
[1759088782434,0.70484899,4039.0,4038.9,2.51876407]
[1759088782834,0.2071,4039.0,4038.9,2.51876407]
[1759088783037,0.5251,4039.0,4038.9,2.51876407]
[1759088784234,3.3426,4039.5,4039.4,0.44544]
[1759088784431,4.05640157,4039.5,4039.4,1.44664]
[1759088784835,4.60570157,4039.5,4039.4,1.44664]
[1759088786736,4.47090157,4039.5,4039.4,1.44664]
[1759088787136,1.26310157,4039.5,4039.4,1.44664]
[1759088787538,1.39260157,4039.5,4039.4,1.44664]
[1759088788740,1.26310157,4039.5,4039.4,1.44664]
[1759088790853,1.39260157,4039.5,4039.4,1.44664]
[1759088791342,4.60040157,4039.5,4039.4,1.44664]
[1759088804946,4.60040157,4039.5,4039.4,0.69344]
[1759088805140,4.60040157,4039.5,4039.4,0.69345]
[1759088805754,5.04583157,4039.5,4039.4,0.69345]
[1759088806554,4.60040157,4039.5,4039.4,0.69345]
[1759088806747,0.3456,4039.0,4038.9,0.972]
[1759088806944,0.8949,4039.0,4038.9,1.22]
[1759088807656,0.8949,4039.0,4038.9,1.4467]
[1759088807657,0.7654,4039.0,4038.9,1.4467]
[1759088808254,0.5423,4039.0,4038.9,1.4467]
[1759088808449,0.5423,4039.2,4039.1,0.44548]
[1759088808654,1.04057987,4039.2,4039.1,2.28074407]
[1759088808950,0.49827987,4039.2,4039.1,2.28074407]
[1759088809553,0.82447987,4039.2,4039.1,2.28074407]
[1759088809753,1.04057987,4039.2,4039.1,2.28074407]
[1759088810760,0.49827987,4039.2,4039.1,2.28074407]
[1759088810964,0.49827987,4039.2,4039.1,5.48854407]
[1759088811258,0.3262,4039.5,4039.4,1.19864]
[1759088811449,0.3262,4039.5,4039.4,2.52870407]
[1759088811651,1.04084427,4039.5,4039.4,2.52870407]
[1759088811863,0.71464427,4039.5,4039.4,2.52870407]
[1759088812061,0.49854427,4039.5,4039.4,2.52870407]
[1759088813666,3.7501,4040.0,4039.9,1.21539]
[1759088813857,4.45916756,4040.0,4039.9,1.46339]
[1759088816167,4.58896756,4040.0,4039.9,1.46339]
[1759088822069,4.58896756,4040.0,4039.9,0.90359]
[1759088823461,4.58896756,4040.0,4039.9,0.65559]
[1759088823667,4.58896756,4040.0,4039.9,0.90359]
[1759088824273,4.58896756,4040.0,4039.9,0.69339]
[1759088824674,5.03434756,4040.0,4039.9,0.69339]
[1759088824868,5.03434756,4040.0,4039.9,0.248]
[1759088827069,0.7642,4039.7,4039.6,0.44542]
[1759088827269,0.4264,4039.3,4039.2,0.44546]
[1759088827470,1.26276756,4039.3,4039.2,0.44546]
[1759088828474,1.26276756,4039.3,4039.2,1.21546]
[1759088837675,1.05226756,4039.3,4039.2,1.21546]
[1759088837971,0.71446756,4039.3,4039.2,2.56357093]
[1759088838177,0.49856756,4039.3,4039.2,2.56357093]
[1759088841785,3.2078,4039.5,4039.4,0.87835]
[1759088841985,3.70498542,4039.5,4039.4,1.43905]
[1759088842983,4.25028542,4039.5,4039.4,1.43905]
[1759088843994,1.04248542,4039.5,4039.4,1.43905]
[1759088847498,1.25708542,4039.5,4039.4,1.43905]
[1759088856300,1.38258542,4039.5,4039.4,1.43905]
[1759088859605,1.25708542,4039.5,4039.4,1.43905]
[1759088877026,1.70251542,4039.5,4039.4,1.43905]
[1759088878020,1.83381542,4039.5,4039.4,0.5195]
[1759088878326,0.7294,4039.2,4039.1,0.65338]